Cogmind - Beta 15 @@@ ROGUE MODE // 2025.05.10 @ 10:08:20 Player: ochotona_princeps Result: Destroyed by WA-6GR(h) with Hypervelocity Coil Gun Performance ------------- Evolutions (2) 1000 Regions Visited (8) 1600 Robots Destroyed (74) 370 Value Destroyed (1754) 1754 Prototype IDs (19) 380 Alien Tech Used (0) 0 Bonus (1307) 1307 TOTAL SCORE: 6411 Bonus ------- High Alert Combat Kills 11 Follower Combat Kills 513 Registered with UFD 300 Met Optimus in HQ 500 Friendly Fire -17 Cogmind --------- Core Integrity 0/550 Matter 215/300 Energy 275/275 System Corruption 0% Temperature Cool (12) Movement Walking (90) Location -8/Scraptown Parts ------- > --- POWER (1) -------- Deuterium Engine > --- PROPULSION (3) --- Overtuned Titanium Leg Overtuned Flexi-carbon Leg > --- UTILITY (5) ------ Experimental Sensor Array Improved Signal Interpreter Microactuators (fused) System Shield > --- WEAPON (2) ------- Companion Sword > --- INVENTORY (5) ---- Surveybot 17 Chip Authchip [R/Combat] Authchip [R/Combat] Authchip [R/Combat] Mapping Drone Bay (3/3) Peak State ------------ > --- POWER ------------ Deuterium Engine > --- PROPULSION ------- Overtuned Titanium Leg Overtuned Flexi-carbon Leg > --- UTILITY ---------- Experimental Sensor Array Improved Signal Interpreter Microactuators System Shield Mapping Drone Bay > --- WEAPON ----------- Companion Sword > --- INVENTORY -------- Surveybot 17 Chip Light Armor Plating Authchip [R/Combat] Authchip [R/Combat] Authchip [R/Combat] [Rating: 45] Favorites ----------- Power Light Nuclear Core Engine Deuterium Engine Power Core Light Nuclear Core Propulsion Aluminum Leg Treads Advanced Treads Leg Aluminum Leg Wheel Wheel Hover Unit Improved Hover Unit Utility Small Storage Unit Device Microactuators Storage Small Storage Unit Processor Improved Signal Interpreter Hackware System Shield Protection Light Armor Plating Weapon Grenade Launcher Energy Gun Heavy Particle Gun Energy Cannon Beam Cannon Ballistic Gun Light Assault Rifle Launcher Grenade Launcher Slashing Weapon Katana Piercing Weapon Spear Build | -11 -10 -10 -9 -9 -8 -8 -8 -8 ------- Run | Yrd Mat Min Mat Min Mat Sto Rec Scr Slots Evolved 4 | . . . 2 . 2 . . . Power . | . . . . . . . . . Propulsion 1 | . . . . . 1 . . . Utility 3 | . . . 2 . 1 . . . Weapon . | . . . . . . . . . Parts Attached 69 | 6 10 . 14 7 9 15 1 7 Power 9 | 1 1 . 3 . 1 2 . 1 Engine 6 | 1 . . 2 . 1 1 . 1 Core 3 | . 1 . 1 . . 1 . . Reactor . | . . . . . . . . . Propulsion 27 | 2 4 . 6 4 1 7 . 3 Treads 6 | . . . 1 1 . 4 . . Leg 9 | . 4 . 1 . . 2 . 2 Wheel 5 | 2 . . . 2 1 . . . Hover 7 | . . . 4 1 . 1 . 1 Flight . | . . . . . . . . . Utility 17 | 1 2 . 4 1 5 1 1 2 Device 7 | . 2 . 1 1 1 . . 2 Storage 1 | 1 . . . . . . . . Processor 2 | . . . . . 2 . . . Hackware 3 | . . . 1 . 1 . 1 . Protection 4 | . . . 2 . 1 1 . . Artifact . | . . . . . . . . . Weapon 16 | 2 3 . 1 2 2 5 . 1 Energy Gun 3 | . 1 . . . . 2 . . Energy Cannon 4 | . 1 . . . 1 2 . . Ballistic Gun 2 | 2 . . . . . . . . Ballistic Cannon . | . . . . . . . . . Launcher 4 | . 1 . . 1 1 1 . . Special Weapon . | . . . . . . . . . Impact Weapon . | . . . . . . . . . Slashing Weapon 2 | . . . 1 . . . . 1 Piercing Weapon 1 | . . . . 1 . . . . Special Melee Weapon . | . . . . . . . . . Unidentified Prototypes 5 | . . . 1 . . 3 . 1 Corrupted Parts 3 | . . . . 3 . . . . System Corruption 9 | . . . . 9 . . . . Parts Lost 29 | . 3 . 5 2 11 7 . 1 Power 4 | . 1 . 1 . 1 1 . . Propulsion 10 | . 1 . 2 . 5 2 . . Utility 9 | . . . 1 2 3 2 . 1 Weapon 6 | . 1 . 1 . 2 2 . . Highest Loss Streak 5 | . 2 . 3 2 5 4 . 1 To Critical Strikes . | . . . . . . . . . Average Backups 5 | . 4 7 7 7 2 2 4 4 Power . | . . . . . . . . . Propulsion 1 | . 2 4 4 4 . 1 . . Utility 2 | . 1 2 1 2 1 . 3 4 Weapon . | . . . 1 . . . . . Tool/Special . | . . . . . . . . . Unused Backups 15 | . 3 1 2 1 . . 3 5 Power 1 | . . 1 . . . . . . Propulsion 3 | . . . . . . . 3 . Utility 8 | . 2 . 1 . . . . 5 Weapon 3 | . 1 . 1 1 . . . . Tool/Special . | . . . . . . . . . Average Slot Usage (%) 77 | . 95 100 91 63 61 54 72 62 Engine 2 | . . . 3 10 5 . . 3 Core 6 | . 11 14 5 . . 5 9 . Treads 7 | . . . . 18 . 7 27 1 Leg 11 | . 24 28 17 . . 6 . 7 Hover 2 | . . . 3 . 16 . . 4 Device 10 | . 11 14 11 5 3 9 9 15 Storage 6 | . 14 14 11 11 6 1 . . Processor 4 | . . . . . 7 9 9 9 Hackware 5 | . . . 10 4 7 . 7 9 Protection 4 | . . . 7 . 2 1 9 8 Energy Gun 1 | . 2 . . . . 5 1 . Energy Cannon 3 | . 9 14 5 . 1 1 . . Launcher 6 | . 10 14 9 10 1 3 1 . Slashing Weapon 1 | . . . 5 1 . . . 2 Peak Build Rating 45 | 6 12 12 20 18 30 27 27 45 Average Rating 18 | 4 10 12 16 12 19 19 23 26 On Entrance 14 | . 6 12 12 14 15 20 27 23 Naked Turns . | . . . . . . . . . Heaviest Build 27 | 10 17 17 23 19 27 19 19 19 Greatest Support 64 | 26 26 20 20 43 28 64 64 64 Greatest Overweight (x) 6 | . 1 . 1 1 3 1 . 6 Average Overweight (x) . | . . . . . . . . . Largest Inventory Capacity 8 | 8 8 8 8 8 8 8 5 5 Average Capacity 6 | 6 8 8 8 8 7 5 5 5 Most Carried 8 | 1 8 8 8 8 6 5 5 5 Average Carried 5 | . 4 7 7 7 2 3 4 4 Final Capacity 8 | 8 8 8 8 8 5 5 5 5 Final Carried 8 | 1 7 8 7 6 5 5 5 5 Class Distribution -------------------- 44% | Commander-Mutant 42% | Mutant 13% | Scavenger-Mutant Dominant Class ---------------- Mutant | -10/Materials Mutant | -10/Mines Mutant | -9/Materials Mutant | -9/Mines Mutant | -8/Materials Commander-Mutant | -8/Storage Commander-Mutant | -8/Recycling Commander-Mutant | -8/Scraptown Resources | -11 -10 -10 -9 -9 -8 -8 -8 -8 ----------- Run | Yrd Mat Min Mat Min Mat Sto Rec Scr Matter Collected 1380 | 168 238 . 343 167 244 172 29 19 Remotely . | . . . . . . . . . Salvage Created 1888 | . 412 55 709 190 364 158 . . Parts 135 | . 31 4 58 9 26 7 . . Haulers Intercepted 1 | . . . 1 . . . . . Recyclers Shooed 6 | . 2 1 . . 3 . . . Parts Field Recycled . | . . . . . . . . . Retrieved Matter . | . . . . . . . . . Parts Self-Destructed . | . . . . . . . . . Prevented . | . . . . . . . . . Kills | -11 -10 -10 -9 -9 -8 -8 -8 -8 ------- Run | Yrd Mat Min Mat Min Mat Sto Rec Scr Combat Hostiles Destroyed 51 | . 9 2 20 5 10 5 . . Melee 15 | . . . 6 . 4 5 . . Guns 8 | . 8 . . . . . . . Cannons 9 | . 1 2 6 . . . . . AOE 18 | . . . 7 5 6 . . . Classes Destroyed 11 | . 6 . 3 1 1 . . . Worker 7 | . 1 1 1 2 2 . . . Builder 2 | . 1 . 1 . . . . . Tunneler 2 | . . . . . 2 . . . Hauler 1 | . . . 1 . . . . . Recycler 2 | . . . . 1 1 . . . Operator 2 | . 1 . 1 . . . . . Watcher 7 | . 3 . 1 . 2 1 . . Swarmer 21 | . 3 2 8 . 4 4 . . Grunt 19 | . 6 . 5 5 3 . . . Duelist 3 | . . . 1 . 2 . . . Sentry 8 | . . . 6 . 1 1 . . Best Kill Streak 11 | . 3 2 8 3 11 5 . . Combat Bots Only 6 | . 3 2 6 3 5 5 . . Max Kills in Single Turn 4 | . 1 1 4 2 3 1 . . Gunslinging . | . . . . . . . . . Exploded 3 | . . . 2 2 3 . . . Melee 1 | . . . 1 . 1 1 . . Uniques/NPCs Destroyed . | . . . . . . . . . Combat | -11 -10 -10 -9 -9 -8 -8 -8 -8 -------- Run | Yrd Mat Min Mat Min Mat Sto Rec Scr Hostile Shots Fired 362 | . 54 18 64 19 111 83 . 13 Missed 103 | . 14 2 16 5 41 22 . 3 Hits 259 | . 40 16 48 14 70 61 . 10 Melee 8 | . . . . 3 5 . . . Projectile 251 | . 40 16 48 11 65 61 . 10 Critical Strikes 7 | . . 1 . 1 2 2 . 1 Damage Taken 3572 | . 509 153 604 274 1085 716 . 231 Core 877 | . 97 25 89 116 320 195 . 35 Absorbed by Shields . | . . . . . . . . . Core Remaining (%) 66 | 100 . 51 . 48 . . . . Volleys Fired 150 | . 54 13 45 9 14 14 1 . Largest 2 | . 2 1 1 1 1 1 1 . Hottest 85 | . 85 60 60 36 80 55 55 . Shots Fired 189 | . 93 13 45 9 14 14 1 . Gun 98 | . 83 . . . . 14 1 . Cannon 60 | . 10 13 32 . 5 . . . Launcher 31 | . . . 13 9 9 . . . Special . | . . . . . . . . . Kinetic 61 | . 61 . . . . . . . Thermal 97 | . 32 13 32 . 5 14 1 . Explosive 31 | . . . 13 9 9 . . . Electromagnetic . | . . . . . . . . . Robot Hit Streak 7 | . 7 7 7 7 3 . 4 . Robot Miss Streak 7 | . 3 3 7 1 2 . . . Penetration Max . | . . . . . . . . . Secondary Targets . | . . . . . . . . . Shots Hit Robots 155 | . 62 9 40 10 18 15 1 . Core Hits 99 | . 26 4 29 11 24 5 . . Critical Kills . | . . . . . . . . . Critical Parts Destroyed . | . . . . . . . . . Critical Strikes 11 | . 1 . 4 . 1 5 . . Burn 1 | . 1 . . . . . . . Sever 4 | . . . 4 . . . . . Impale 6 | . . . . . 1 5 . . Melee Attacks 93 | . . . 34 3 32 24 . . Impact . | . . . . . . . . . Slashing 37 | . . . 34 3 . . . . Piercing 56 | . . . . . 32 24 . . Sneak Attacks 7 | . . . 3 3 1 . . . Combat Hostiles . | . . . . . . . . . Follow-up Attacks . | . . . . . . . . . Damage Inflicted 5351 | . 693 168 1681 685 1674 433 17 . Guns 598 | . 581 . . . . . 17 . Cannons 755 | . 112 165 374 . 104 . . . Explosions 2226 | . . . 526 496 1204 . . . Melee 1769 | . . . 781 189 366 433 . . Ramming 3 | . . 3 . . . . . . Kinetic 340 | . 340 . . . . . . . Thermal 1013 | . 353 165 374 . 104 . 17 . Explosive 2226 | . . . 526 496 1204 . . . Electromagnetic . | . . . . . . . . . Impact . | . . . . . . . . . Slashing 970 | . . . 781 189 . . . . Piercing 799 | . . . . . 366 433 . . Highest Corruption 9 | . . . . 9 . 1 1 . Average Corruption 1 | . . . . 6 . 1 1 . Corruption Purged . | . . . . . . . . . Corruption Blocked . | . . . . . . . . . Effects 10 | . . . . 1 . 1 8 . Message Errors 1 | . . . . 1 . . . . Matter Fused 3 | . . . . . . . 3 . Heat Flow Errors 2 | . . . . . . . 2 . Energy Discharges 2 | . . . . . . 1 1 . Parts Fused 1 | . . . . . . . 1 . Data Loss (major) 1 | . . . . . . . 1 . Overload Shots . | . . . . . . . . . Overflow Damage 187 | . . . 63 25 58 41 . . Projectiles . | . . . . . . . . . Explosions 60 | . . . 15 1 44 . . . Melee 127 | . . . 48 24 14 41 . . Knockbacks . | . . . . . . . . . Impact . | . . . . . . . . . Kinetic . | . . . . . . . . . Secondary . | . . . . . . . . . Self-Inflicted Damage 46 | . . . 16 . 30 . . . Shots 3 | . . . 1 . 2 . . . Rammed . | . . . . . . . . . Targets Rammed 1 | . . 1 . . . . . . Kicked 1 | . . 1 . . . . . . Crushed . | . . . . . . . . . Highest Temperature 214 | . 131 . 128 13 95 84 214 27 Average Temperature 35 | . 30 . 47 5 27 27 88 19 Received Heat Transfer 1402 | . 273 9 201 90 495 189 . 145 Siege Activations . | . . . . . . . . . Martial Activations . | . . . . . . . . . Shielding Activations . | . . . . . . . . . Robots Disrupted . | . . . . . . . . . Combat Hostiles . | . . . . . . . . . Robots Corrupted . | . . . . . . . . . Combat Hostiles . | . . . . . . . . . Parts Fried . | . . . . . . . . . Impact Corruptions . | . . . . . . . . . Robots Melted 1 | . . . 1 . . . . . Combat Hostiles 1 | . . . 1 . . . . . Parts Melted 6 | . 5 . 1 . . . . . Heat Transferred 2235 | . 888 333 777 . 200 . 37 . Parts Sabotaged . | . . . . . . . . . Parts Stolen . | . . . . . . . . . Parts Stripped . | . . . . . . . . . Power Chain Reactions . | . . . . . . . . . Alert | -11 -10 -10 -9 -9 -8 -8 -8 -8 ------- Run | Yrd Mat Min Mat Min Mat Sto Rec Scr Maximum Alert Level 2 | . . . 1 . 2 1 . . Low Security (%) 89 | 100 100 100 78 100 39 83 100 . Level 1 9 | . . . 21 . 46 16 . . Level 2 . | . . . . . 14 . . . Level 3 . | . . . . . . . . . Level 4 . | . . . . . . . . . Level 5 . | . . . . . . . . . High Security . | . . . . . . . . . Max Security . | . . . . . . . . . Peak Influence 412 | . 96 138 288 72 412 299 103 . Initial 115 | . . . 25 . . 115 103 . Average 68 | . 18 34 107 18 228 169 9 . Influence Increases 2951 | . 306 167 874 171 732 619 82 . Destroy 0b10 Robot/C 1400 | . 180 120 460 100 200 280 60 . Destroy 0b10 Robot/NC 120 | . 30 5 30 15 35 5 . . Destroy Leader 388 | . 56 20 136 20 44 112 . . Allied During Kill 208 | . . 22 23 . . 141 22 . Successful Hack 65 | . 25 . 25 . 11 4 . . Disable Machine 135 | . . . 60 . 30 45 . . Destroy Structure 200 | . . . 80 36 82 2 . . Partial Spotted 75 | . . . 30 . 45 . . . Lose Combat Pursuer 360 | . 15 . 30 . 285 30 . . Influence Decreases 2951 | . 306 101 940 171 457 628 348 . Entered New Map 364 | . . . 41 . . 160 163 . Time Decay 1752 | . 276 101 514 161 197 318 185 . Lost Part 270 | . 30 . 50 10 110 70 . . Lost Ally 170 | . . . 90 . . 80 . . Purge Threat 395 | . . . 245 . 150 . . . Squads Dispatched 9 | . 3 1 3 . 2 . . . Investigation 6 | . 2 1 2 . 1 . . . Extermination . | . . . . . . . . . Reinforcement 3 | . 1 . 1 . 1 . . . Assault . | . . . . . . . . . Garrison . | . . . . . . . . . Intercept . | . . . . . . . . . Searches Triggered . | . . . . . . . . . Construction Impeded . | . . . . . . . . . Haulers Reinforced . | . . . . . . . . . Active Scanning Responses . | . . . . . . . . . Cargo Convoy Interrupts . | . . . . . . . . . Stealth | -11 -10 -10 -9 -9 -8 -8 -8 -8 --------- Run | Yrd Mat Min Mat Min Mat Sto Rec Scr Distress Signals 10 | . 4 . 1 . 1 4 . . Communications Jammed . | . . . . . . . . . Distress Signals . | . . . . . . . . . Times Spotted 142 | . 21 6 35 7 38 17 2 16 Peak Tracking Total 14 | . 5 3 6 3 9 6 1 14 Tactical Retreats 12 | . 1 . 2 . 8 1 . . Traps | -11 -10 -10 -9 -9 -8 -8 -8 -8 ------- Run | Yrd Mat Min Mat Min Mat Sto Rec Scr Traps Triggered 3 | . . . . 1 . 2 . . Indirectly . | . . . . . . . . . Trap Hack Attempts . | . . . . . . . . . Triggered . | . . . . . . . . . Disarmed . | . . . . . . . . . Reprogrammed . | . . . . . . . . . Reused . | . . . . . . . . . Traps Extracted . | . . . . . . . . . Installed . | . . . . . . . . . Triggered . | . . . . . . . . . Machines | -11 -10 -10 -9 -9 -8 -8 -8 -8 ---------- Run | Yrd Mat Min Mat Min Mat Sto Rec Scr Machines Disabled 9 | . . . 4 . 2 3 . . Max in Single Turn 1 | . . . 1 . 1 1 . . Machines Repaired . | . . . . . . . . . Machines Dismantled . | . . . . . . . . . Machines Sabotaged . | . . . . . . . . . Overloaded Fab Kills . | . . . . . . . . . Hacking | -11 -10 -10 -9 -9 -8 -8 -8 -8 --------- Run | Yrd Mat Min Mat Min Mat Sto Rec Scr Machines Accessed 37 | . 8 1 9 1 8 1 6 3 Terminals 30 | . 7 . 9 . 8 1 5 . Fabricators . | . . . . . . . . . Repair Stations . | . . . . . . . . . Recycling Units 2 | . 1 . . . . . 1 . Scanalyzers . | . . . . . . . . . Garrison Access . | . . . . . . . . . Total Hacks 110 | . 27 1 38 1 30 1 8 4 Successful 66 | . 12 1 26 1 15 1 6 4 Failed 43 | . 14 . 12 . 15 . 2 . Catastrophic 1 | . 1 . . . . . . . Database Lockouts 1 | . 1 . . . . . . . Manual 82 | . 17 . 31 . 26 2 6 . Terminals 100 | . 25 . 38 . 30 1 6 . Fabricators . | . . . . . . . . . Repair Stations . | . . . . . . . . . Recycling Units 4 | . 2 . . . . . 2 . Scanalyzers . | . . . . . . . . . Garrison Access . | . . . . . . . . . Terminal Hacks 27 | . 8 1 10 1 3 . . 4 Record 2 | . . . . . . . . 2 Robot Schematic 1 | . . . 1 . . . . . Robot Analysis 3 | . 3 . . . . . . . Prototype ID Bank 1 | . . . 1 . . . . . Open Door 3 | . . 1 . 1 . . . 1 Branch Access Points 1 | . . . 1 . . . . . Emergency Access Points 2 | . . . 1 . 1 . . . Machine Index 1 | . . . . . 1 . . . Terminal Index 1 | . . . 1 . . . . . Unreport Threat 4 | . 1 . 2 . 1 . . . Locate Traps 2 | . 2 . . . . . . . Recall Reinforcements 1 | . . . 1 . . . . . Hauler Manifests 3 | . 1 . 2 . . . . . Zone Layout 1 | . 1 . . . . . . . Proto ID Catalog 1 | . . . . . . . . 1 Fabricator Hacks . | . . . . . . . . . Repair Station Hacks . | . . . . . . . . . Recycling Unit Hacks 2 | . 1 . . . . . 1 . Retrieve Components 2 | . 1 . . . . . 1 . Scanalyzer . | . . . . . . . . . Garrison Access Hacks . | . . . . . . . . . Unauthorized Hacks 36 | . 3 . 15 . 12 1 5 . Terminals 36 | . 3 . 15 . 12 1 5 . Assimilate 4 | . . . 3 . 1 . . . Botnet 11 | . 2 . 5 . 4 . . . Operators 3 | . 1 . 1 . 1 . . . Skim 18 | . . . 6 . 6 1 5 . Fabricators . | . . . . . . . . . Repair Stations . | . . . . . . . . . Recycling Units . | . . . . . . . . . Scanalyzers . | . . . . . . . . . Garrison Access . | . . . . . . . . . Data Cores Recovered . | . . . . . . . . . Used . | . . . . . . . . . Hacking Detections 25 | . 7 . 9 . 8 1 . . Full Trace Events 9 | . 6 . 2 . 1 . . . Feedback Events . | . . . . . . . . . Feedback Blocked . | . . . . . . . . . Robot Schematics Acquired 1 | . . . 1 . . . . . Robots Built . | . . . . . . . . . Authchips . | . . . . . . . . . Time . | . . . . . . . . . Total Robot Build Rating . | . . . . . . . . . Part Schematics Acquired . | . . . . . . . . . Parts Built . | . . . . . . . . . Authchips . | . . . . . . . . . Time . | . . . . . . . . . Total Part Build Rating . | . . . . . . . . . Parts Repaired . | . . . . . . . . . Time . | . . . . . . . . . Parts Recycled . | . . . . . . . . . Recycled Matter . | . . . . . . . . . Retrieved Matter . | . . . . . . . . . Retrieved Components 10 | . 10 . . . . . . . Parts Scanalyzed . | . . . . . . . . . Part Schematics Acquired . | . . . . . . . . . Parts Damaged . | . . . . . . . . . Bothacking | -11 -10 -10 -9 -9 -8 -8 -8 -8 ------------ Run | Yrd Mat Min Mat Min Mat Sto Rec Scr Used RIF Installer . | . . . . . . . . . Robots Hacked . | . . . . . . . . . Non-combat . | . . . . . . . . . Combat . | . . . . . . . . . Robot Hacks Applied . | . . . . . . . . . Relay Couplers Released . | . . . . . . . . . Fabnet Peak Effective % . | . . . . . . . . . Robots Rewired . | . . . . . . . . . Allies Hacked . | . . . . . . . . . Hacks Repelled . | . . . . . . . . . Allies | -11 -10 -10 -9 -9 -8 -8 -8 -8 -------- Run | Yrd Mat Min Mat Min Mat Sto Rec Scr Total Allies 17 | . . 4 3 . . 10 . . Largest Group 10 | . . 4 5 . . 10 6 4 Highest-Rated Group 173 | . . 71 81 . . 173 109 77 Highest-Rated Ally 31 | . . 31 31 . . 29 29 29 Total Orders 10 | . . . 8 . . . . 2 STAY 4 | . . . 4 . . . . . FOLLOW 4 | . . . 4 . . . . . RETURN 2 | . . . . . . . . 2 Ally Attacks 137 | . . 21 24 . . 52 31 9 Total Damage 1553 | . . 177 249 . . 718 350 59 Kills 20 | . . 4 4 . . 9 3 . Allies Corrupted . | . . . . . . . . . Allies Melted . | . . . . . . . . . Intel | -11 -10 -10 -9 -9 -8 -8 -8 -8 ------- Run | Yrd Mat Min Mat Min Mat Sto Rec Scr Active Infowar (turns) 1927 | . . . 652 231 178 19 . 847 Sensors 1889 | . . . 652 231 140 19 . 847 Machine Analysis 38 | . . . . . 38 . . . Robot Analysis Total 3 | . 3 . . . . . . . Derelict Logs Recovered 2 | . . 1 . 1 . . . . Drone Launches 2 | . . . . . . . . 2 Drone Recoveries 2 | . . . . . . . . 2 Exploration | -11 -10 -10 -9 -9 -8 -8 -8 -8 ------------- Run | Yrd Mat Min Mat Min Mat Sto Rec Scr Turns Passed 8086 | 54 1271 657 1556 541 443 701 1497 1366 Spaces Moved 6368 | 56 893 523 1107 332 479 438 855 1685 Core 223 | 16 . . . . 73 104 . 30 Treads 1398 | . . . 56 285 . 141 855 61 Legs 2657 | . 815 523 761 . . 154 . 404 Wheels 241 | 40 78 . . 47 37 39 . . Hover 1849 | . . . 290 . 369 . . 1190 Flight . | . . . . . . . . . Fastest Speed 50 | 50 90 120 56 80 50 50 150 60 Average Speed 105 | 78 117 120 105 148 58 112 150 77 Slowest Speed 350 | 90 190 120 190 160 240 190 150 350 Overloaded Moves . | . . . . . . . . . Propulsion Burnouts . | . . . . . . . . . Robots Hopped . | . . . . . . . . . Potential Cave-ins . | . . . . . . . . . Cave-ins Triggered . | . . . . . . . . . Exploration Rate (%) 71 | 3 98 90 86 74 46 58 98 86 Regions Visited 8 Branch Regions 5 Pre-discovered Areas 8 | . . 1 5 . . . 2 . Known Exits Taken 5 | . . . 1 1 1 1 1 . Unknown Exits Taken 3 | 1 1 1 . . . . . . Scrap Searched 6 | . . 1 . 1 . . . 4 Spaces Dug 84 | . . . 58 9 16 1 . . Terrain Destroyed 240 | . . . 91 50 98 1 . . Melee 24 | . . . 7 . 16 1 . . Projectile 1 | . . . . . 1 . . . AOE 215 | . . . 84 50 81 . . . Terrain Rammed . | . . . . . . . . . Walls Destroyed . | . . . . . . . . . Machines Disabled . | . . . . . . . . . Actions | -11 -10 -10 -9 -9 -8 -8 -8 -8 --------- Run | Yrd Mat Min Mat Min Mat Sto Rec Scr Total 7373 | 62 1034 539 1392 366 574 587 1071 1748 Wait 582 | . 58 . 169 . 31 79 205 40 Move 6360 | 55 892 522 1106 331 478 437 854 1685 Hop . | . . . . . . . . . Pick Up 37 | 1 11 2 5 6 1 3 4 4 Fast Attach 51 | 6 6 . 5 3 8 16 1 6 Attach 22 | . 1 . 6 6 6 3 . . Detach 8 | . . . 2 2 3 . 1 . Swap 19 | . 3 . 12 . . . . 4 Drop 46 | . 9 1 8 6 1 7 5 9 Fire 150 | . 54 13 45 9 14 14 1 . Melee 93 | . . . 34 3 32 24 . . Ram . | . . . . . . . . . Kick 1 | . . 1 . . . . . . Crush . | . . . . . . . . . Escape Stasis 4 | . . . . . . 4 . . Rewire . | . . . . . . . . . Trap . | . . . . . . . . . Miscellaneous . | . . . . . . . . . Route ------- -11/Scrapyard -10/Materials (discovered 4 exits: *Mat x3 / *Min) -10/Mines (discovered 3 exits: *Mat x2 / [*Exi]) -9/Materials (discovered 5 exits: *Mat x3 / *Min x2) -9/Mines (discovered 2 exits: *Mat x2) -8/Materials (discovered 2 exits: *Fac / *Sto) -8/Storage (discovered 2 exits: Fac / *Rec) -8/Recycling (discovered 2 exits: *Fac / *Scr) -8/Scraptown (discovered 2 exits: *Fac x2) History --------- Turn | Location | Event 3 | -11/Scrapyard | Discovered new exit (range 16) 55 | -11/Scrapyard | Entered Materials 112 | -10/Materials | Discovered new exit (range 13) 555 | -10/Materials | Discovered new exit (range 16) 569 | -10/Materials | Build established: Scavenger-Mutant 974 | -10/Materials | Central database locked down 1037 | -10/Materials | Build established: Mutant 1045 | -10/Materials | Discovered new exit (range 15) 1111 | -10/Materials | Discovered new exit (range 9) 1326 | -10/Materials | Entered Mines 1333 | -10/Mines | Met a Derelict shopkeep closing up shop 1427 | -10/Mines | Received a Rocket Launcher from a helpful Derelict 1482 | -10/Mines | Discovered new exit (range 15) 1510 | -10/Mines | Found a hidden stash of uninstalled traps 1561 | -10/Mines | Assisted by bots powering up and referring to "LRC-V3" 1852 | -10/Mines | Received a Mining Laser from a helpful Derelict 1951 | -10/Mines | Deemed a non-threat by the Exiles lab entrance 1953 | -10/Mines | Discovered new exit (range 5) 1960 | -10/Mines | Discovered new exit (range 4) 1983 | -10/Mines | Entered Materials 1983 | -9/Materials | Accompanied by 4 allies 1983 | -9/Materials | Evolved 2 slots: Utility x2 2390 | -9/Materials | Lost 4 allies 2585 | -9/Materials | Discovered new exit (range 10) 2935 | -9/Materials | Discovered new exit (range 15) 3093 | -9/Materials | Discovered new exit (range 14) 3189 | -9/Materials | Learned 2 Storage zone layouts 3233 | -9/Materials | Identified exit to Mines 3296 | -9/Materials | Learned location of Storage (-8) 3305 | -9/Materials | Build established: Scavenger-Mutant 3335 | -9/Materials | Learned Storage stockpile data 3406 | -9/Materials | Learned location of Zion (-6) 3418 | -9/Materials | Lost 3 parts (1n1u1w) 3431 | -9/Materials | Learned Storage emergency access door positions 3467 | -9/Materials | Learned location of Recycling (-8) 3511 | -9/Materials | Learned Recycling recycling unit intel 3539 | -9/Materials | Entered Mines 3540 | -9/Mines | Identified exit to Materials 3556 | -9/Mines | Met a Derelict bent on vengeance 3678 | -9/Mines | Learned 4 Materials zone layouts 3903 | -9/Mines | Met a Derelict who couldn't figure out how to use a Trap Extractor 3948 | -9/Mines | Build established: Mutant 4078 | -9/Mines | Core integrity fell below 50% 4080 | -9/Mines | Entered Materials 4080 | -8/Materials | Evolved 2 slots: Propulsion x1, Utility x1 4081 | -8/Materials | Identified exit to Storage 4377 | -8/Materials | Lost 5 parts (1p2n1u1w) 4416 | -8/Materials | Discovered new exit (range 10) 4493 | -8/Materials | Core integrity fell below 50% 4523 | -8/Materials | Entered Storage 4524 | -8/Storage | Identified exit to Factory 4525 | -8/Storage | Identified exit to Recycling 4664 | -8/Storage | Lost 4 parts (1n2u1w) 4679 | -8/Storage | Core integrity fell below 20% 4734 | -8/Storage | Lost 3 parts (1p1n1w) 4751 | -8/Storage | Assisted by bots powering up and referring to "LRC-V3" 5043 | -8/Storage | Build established: Commander-Mutant 5211 | -8/Storage | Used back door to open Recycling access 5224 | -8/Storage | Entered Recycling 5224 | -8/Recycling | Accompanied by 6 allies 5225 | -8/Recycling | Identified exit to Factory 5226 | -8/Recycling | Loaded intel: 5 recycling unit locations 6448 | -8/Recycling | Identified exit to Scraptown 6482 | -8/Recycling | Learned location of 1 exit from Lower Caves 6504 | -8/Recycling | Learned Storage security intel 6514 | -8/Recycling | Learned location of Lower Caves (-7) 6515 | -8/Recycling | Learned location of 1 exit from Extension 6516 | -8/Recycling | Learned location of Extension (-5) 6518 | -8/Recycling | Learned Factory garrison access intel 6519 | -8/Recycling | Learned Storage stockpile data 6527 | -8/Recycling | Learned location of 1 exit from Storage 6685 | -8/Recycling | Scanned before Scraplab entrance 6706 | -8/Recycling | Entered Scraplab 6721 | -8/Recycling | Entered Scraptown 6721 | -8/Scraptown | Accompanied by 4 allies 6721 | -8/Scraptown | System corruption cleaned by C-Scrubber 6853 | -8/Scraptown | Visited Supply Room 6866 | -8/Scraptown | Visited Junk Repository 6879 | -8/Scraptown | Visited Cyclists 6941 | -8/Scraptown | Discovered exit to Factory (range 5) 6979 | -8/Scraptown | Heard Great Nut preacher, LISTEN AND RECITE! 7103 | -8/Scraptown | Visited Assassins FH 7115 | -8/Scraptown | Visited UFD Registry 7115 | -8/Scraptown | Registered with UFD as "Technoflow" 7154 | -8/Scraptown | Visited Sword Containment 7166 | -8/Scraptown | Visited Derelict Rescue Squad 7175 | -8/Scraptown | Visited Infowarlord's Domain 7179 | -8/Scraptown | Found Exp. Sensor Array 7191 | -8/Scraptown | Visited Chapter 10 7213 | -8/Scraptown | Visited Scrap Suit Storage 7233 | -8/Scraptown | Visited Modified Component R&D 7258 | -8/Scraptown | Visited Curators Association 7306 | -8/Scraptown | Discovered exit to Factory (range 5) 7326 | -8/Scraptown | Visited Cartography Club 7345 | -8/Scraptown | Found Surveybot 17 Chip 7452 | -8/Scraptown | Visited Science Guys 7960 | -8/Scraptown | Met Optimus 7960 | -8/Scraptown | Accepted into 0bPrime 8050 | -8/Scraptown | Civil war broke out across Scraptown 8087 | -8/Scraptown | Destroyed by WA-6GR(h) with Hypervelocity Coil Gun Last Messages --------------- 08083_ I5-230(h) destroyed. 08083_ Slug penetrates FP-1AB(x). 08083_ FP-1AB(x) destroyed. 08084_ Ovr. Titanium Leg recovered from malfunction. 08084_ HV Slug penetrates Optimus. 08084_ HV Slug penetrates Trooper 3f. 08084_ Trooper 3f suffers critical hit (Destroy). 08085_ Slug penetrates ZI-LOP(x). 08085_ ZI-LOP(x) destroyed. 08085_ Slug penetrates O8-V2J(j). 08085_ DM-E45(c) destroyed. 08086_ Slug penetrates WA-6GR(h). 08086_ WA-6GR(h) suffers critical hit (Burn). 08087_ Lgt. Armor Plating destroyed. 08087_ HV Slug penetrates Optimus. 08087_ HV Slug penetrates Wall. 08087_ HV Slug penetrates LV-YYG(E). 08087_ Penetrated by HV Slug. Map ----- +----------------------------------------------------+ | ?????????????????????????????????????????????????? | | ?????????????????????????????????????????????????? | | ?????????????????????????????????????????????????? | | ?????????????????????????????????????????????????? | | ?????????????????????????????????????????????????? | | ?????????????????????????????????????????????????? | | ?????????????????????????????????????????????????? | | ?????????????????????????????????????????????????? | | ????????????????????????????????#####????????????? | | ????????????????????????????????#"""#????????????? | | ?##??###############???####?????#" "#????????????? | | ?"""?#"""##""|##"""#??## ##????# < "#???????????? | | ?"" ##""!##"" ##!!"#### ######=*=##???????????? | | #"" jjjx[=!%[#???????????? | | # * !!%*[!#???????????? | | #######################!%= ###########???????????? | | ?#????????????????????## h##?????????????????????? | | ???##???##??############jj#??????????????????????? | | ???#"###"#?## ## p#???????j??###?????????? | | ???# "]" #??# ## #?? ????#### #?????????? | | ?" """ "# ## #???????# !# #?????????? | | ?#"" ""## ## ##?##???## # #?????????? | | ##&" "=## ## ##????### #?????????? | | ##"" ""## ## ##?? #X#### #?????????? | | #" t "##### ######* #?????### ## #?????????? | | ?#"" ""#?#### X###?#%@#??#??# #?????????? | | ?#&" "[#?# #?#! ####### ######?????????? | | ??"" ""??# #?# /# #?????????? | | ??? ? "?# #?#%=# ##????????? | | ??##?# #?????##### ###?*EE## ###########?????????? | | ###### ########### ####=3!## ##??#?#?????????????? | | """""" """"""""""" """"jg=%" "#???######?????????? | | !!hc "#?? """"""""#?????? | | !!%* "#?? " " " "#?????? | | c[ "## &"#?????? | | "## &"#?????? | | E &"#?????? | | """""""""""""""""""" "" "## ""#?????? | | """""""""""""""""""""""" "#? " " " "#?????? | | #### ################"" "#?? """"""""??????? | | ##???#??###"" "##?#######?????????? | | X"#?#?##?#?#"" "###########????????? | | "" "" ##???#????#"" "## #????????? | | "" "" X"#???#?####"" "## #????????? | | " " ######### #"" "## #????????? | | "" #????????? | | "" "## #????????? | | " " ######### #"" "###########????????? | | "" "" ""###??#?###"" "#??????????????????? | | "" "" ##??##??###"" "####?#?????##??????? | +----------------------------------------------------+ Best States ------------- Heat Dissipation 42 Energy Generation 14 Energy Capacity 280 Matter Stores 300 Matter Capacity 300 Sight Range 16 Robot Scan Range 20 Terrain Scan Density 10 Armor Coverage 150 Melee Speed Boost 20 Evasion (%) 57 Recoil Reduction 3 Offensive Hacking 10 Defensive Hacking 10 Authchip Count 4 Item Schematics ----------------- None Robot Schematics ------------------ O-16 Technician | -9/Materials | Hacked Fabricated ------------ Nothing Repaired ---------- Nothing Alien Tech Used ----------------- None Achievements -------------- None Challenges ------------ None Game ------ Seed FieldDispersionPendant Manual? 0 Play Time 01:11:37 Cumulative 233.1 hours Start 2025.05.10 @ 08:44:26 End 2025.05.10 @ 10:08:20 Sessions 1 Manual Loads 0 Difficulty Rogue Special Mode None Game No. 230 Rogue 169 Adventurer 61 Explorer 0 Win Type - Total 10 Types 8/0/2/0/0/0/0/0/0/0 Lore% 51 Gallery% 62 Achievement% 61 Wizard Run 0 Options --------- Layout 1 ASCII 0 Keyboard 0 Movement Mouse Keybinds 0 Fullscreen 2 Font 32/SmallcapsGlow Map View 50x35 Zoom Use 0% Tactical HUD 1 Map Filters NONE Filters NONE Steam 1 RUN: 24b6c068-9e0e-4015-9590-8777dbe8f975